Cogmind - Beta 9.2 @@@ ROGUE MODE // 2019.11.22 @ 11:24:36 Player: SHADOWELITE7 Result: Destroyed by G-34 Mercenary with Small Laser Performance ------------- Evolutions (0) 0 Regions Visited (1) 200 Robots Destroyed (13) 65 Value Destroyed (288) 288 Prototype IDs (0) 0 Alien Tech Used (0) 0 Bonus (0) 0 TOTAL SCORE: 553 Bonus ------- None Cogmind --------- Core Integrity 0/250 Matter 396/400 Energy 100/100 System Corruption 0% Temperature Cool (6) Movement Core (150) Ox2 Location -10/Materials Parts ------- > --- POWER (1) -------- (None) > --- PROPULSION (2) --- (None) > --- UTILITY (2) ------ Small Storage Unit Medium Matter Pod > --- WEAPON (2) ------- Light Assault Rifle > --- INVENTORY (6) ---- Light Ion Engine Peak State ------------ > --- POWER ------------ Light Ion Engine > --- PROPULSION ------- Light Treads Light Treads > --- UTILITY ---------- Small Storage Unit Medium Matter Pod > --- WEAPON ----------- Assault Rifle Light Assault Rifle > --- INVENTORY -------- Light Ion Engine Light Nuclear Core Small Laser Light Assault Rifle [Rating: 7] Favorites ----------- Power Light Ion Engine Engine Light Ion Engine Power Core Light Nuclear Core Propulsion Light Treads Treads Light Treads Utility Small Storage Unit Storage Small Storage Unit Weapon Assault Rifle Energy Gun Small Laser Ballistic Gun Assault Rifle Build | -11 -10 ------- Run | Scr Mat Slots Evolved . | . . Power . | . . Propulsion . | . . Utility . | . . Weapon . | . . Parts Attached 10 | 6 4 Power 2 | 1 1 Engine 1 | 1 . Core 1 | . 1 Reactor . | . . Propulsion 2 | 2 . Treads 2 | 2 . Leg . | . . Wheel . | . . Hover . | . . Flight . | . . Utility 2 | 1 1 Device . | . . Storage 2 | 1 1 Processor . | . . Hackware . | . . Protection . | . . Artifact . | . . Weapon 4 | 2 2 Energy Gun 1 | . 1 Energy Cannon . | . . Ballistic Gun 3 | 2 1 Ballistic Cannon . | . . Launcher . | . . Special Weapon . | . . Impact Weapon . | . . Slashing Weapon . | . . Piercing Weapon . | . . Special Melee Weapon . | . . Unidentified Prototypes . | . . Parts Lost 7 | . 7 Power 2 | . 2 Propulsion 2 | . 2 Utility . | . . Weapon 3 | . 3 Highest Loss Streak 4 | . 4 Average Slot Usage (%) 81 | . 81 Engine 9 | . 9 Core 2 | . 2 Treads 23 | . 23 Storage 22 | . 22 Ballistic Gun 22 | . 22 Naked Turns . | . . Heaviest Build 13 | 10 13 Greatest Support 40 | 40 40 Greatest Overweight (x) 4 | . 4 Average Overweight (x) . | . . Largest Inventory Capacity 6 | 6 6 Average Capacity 5 | 4 6 Most Carried 5 | 2 5 Average Carried 2 | 1 3 Final Capacity 6 | 6 6 Final Carried 2 | 2 1 Class Distribution -------------------- 100% | Mutant Dominant Class ---------------- Mutant | -10/Materials Resources | -11 -10 ----------- Run | Scr Mat Matter Collected 530 | 192 338 Remotely . | . . Salvage Created 356 | . 356 Parts 26 | . 26 Haulers Intercepted . | . . Recyclers Shooed 1 | . 1 Parts Field Recycled . | . . Retrieved Matter . | . . Parts Self-Destructed . | . . Prevented . | . . Kills | -11 -10 ------- Run | Scr Mat Combat Hostiles Destroyed 12 | . 12 Guns 12 | . 12 Classes Destroyed 3 | . 3 Worker 1 | . 1 Swarmer 6 | . 6 Grunt 6 | . 6 Best Kill Streak 6 | . 6 Combat Bots Only 6 | . 6 Max Kills in Single Turn 1 | . 1 Gunslinging . | . . Exploded . | . . Melee . | . . Uniques/NPCs Destroyed . | . . Combat | -11 -10 -------- Run | Scr Mat Damage Taken 965 | . 965 Core 254 | . 254 Absorbed by Shields . | . . Core Remaining (%) 100 | 100 . Volleys Fired 52 | . 52 Largest 2 | . 2 Hottest 60 | . 60 Shots Fired 76 | . 76 Gun 76 | . 76 Cannon . | . . Launcher . | . . Special . | . . Kinetic 73 | . 73 Thermal 3 | . 3 Explosive . | . . Electromagnetic . | . . Robot Hit Streak 9 | . 9 Robot Miss Streak 7 | . 7 Penetration Max . | . . Secondary Targets 2 | . 2 Max Gunslinging Chain 1 | . 1 Shots Hit Robots 41 | . 41 Core Hits 20 | . 20 Critical Hits . | . . Critical Kills . | . . Critical Parts Destroyed . | . . Melee Attacks . | . . Impact . | . . Slashing . | . . Piercing . | . . Sneak Attacks . | . . Combat Hostiles . | . . Follow-up Attacks . | . . Damage Inflicted 491 | . 491 Guns 489 | . 489 Cannons . | . . Explosions . | . . Melee . | . . Ramming 2 | . 2 Kinetic 468 | . 468 Thermal 21 | . 21 Explosive . | . . Electromagnetic . | . . Impact . | . . Slashing . | . . Piercing . | . . Highest Corruption . | . . Average Corruption . | . . Corruption Purged . | . . Overload Shots . | . . Overflow Damage . | . . Projectiles . | . . Explosions . | . . Melee . | . . Knockbacks 1 | . 1 Impact 1 | . 1 Kinetic . | . . Secondary . | . . Self-Inflicted Damage . | . . Shots . | . . Rammed 1 | . 1 Targets Rammed 1 | . 1 Kicked . | . . Crushed . | . . Highest Temperature 36 | . 36 Average Temperature 10 | . 10 Received Heat Transfer 354 | . 354 Siege Activations . | . . Robots Corrupted . | . . Combat Hostiles . | . . Parts Fried . | . . Impact Corruptions . | . . Robots Melted . | . . Combat Hostiles . | . . Parts Melted . | . . Heat Transferred 50 | . 50 Parts Sabotaged . | . . Parts Stolen . | . . Parts Stripped . | . . Power Chain Reactions . | . . Missiles Intercepted . | . . Alert | -11 -10 ------- Run | Scr Mat Peak Influence 285 | . 285 Average Influence 115 | . 146 Maximum Alert Level 1 | . 1 Low Security (%) 76 | 100 70 Level 1 23 | . 29 Level 2 . | . . Level 3 . | . . Level 4 . | . . Level 5 . | . . High Security . | . . Max Security . | . . Squads Dispatched 2 | . 2 Investigation 1 | . 1 Extermination . | . . Reinforcement 1 | . 1 Assault . | . . Garrison . | . . Intercept . | . . Construction Impeded . | . . Haulers Reinforced . | . . Stealth | -11 -10 --------- Run | Scr Mat Distress Signals 2 | . 2 Communications Jammed . | . . Distress Signals . | . . Times Spotted 17 | . 17 Peak Tracking Total 4 | . 4 Tactical Retreats . | . . Traps | -11 -10 ------- Run | Scr Mat Traps Triggered 1 | . 1 Indirectly . | . . Trap Hack Attempts . | . . Triggered . | . . Disarmed . | . . Reprogrammed . | . . Reused . | . . Traps Extracted . | . . Installed . | . . Triggered . | . . Machines | -11 -10 ---------- Run | Scr Mat Machines Disabled 1 | . 1 Max in Single Turn 1 | . 1 Machines Sabotaged . | . . Garrisons Compromised . | . . Overloaded Fab Kills . | . . Fab Network Shutdowns . | . . Hacking | -11 -10 --------- Run | Scr Mat Machines Accessed . | . . Terminals . | . . Fabricators . | . . Repair Stations . | . . Recycling Units . | . . Scanalyzers . | . . Garrison Access . | . . Total Hacks . | . . Successful . | . . Failed . | . . Catastrophic . | . . Database Lockouts . | . . Manual . | . . Terminals . | . . Fabricators . | . . Repair Stations . | . . Recycling Units . | . . Scanalyzers . | . . Garrison Access . | . . Terminal Hacks . | . . Fabricator Hacks . | . . Repair Station Hacks . | . . Recycling Unit Hacks . | . . Scanalyzer . | . . Garrison Access Hacks . | . . Unauthorized Hacks . | . . Terminals . | . . Fabricators . | . . Repair Stations . | . . Recycling Units . | . . Scanalyzers . | . . Garrison Access . | . . Data Cores Recovered . | . . Used . | . . Hacking Detections . | . . Full Trace Events . | . . Feedback Events . | . . Feedback Blocked . | . . Robot Schematics Acquired . | . . Robots Built . | . . Matter . | . . Time . | . . Total Robot Build Rating . | . . Part Schematics Acquired . | . . Parts Built . | . . Matter . | . . Time . | . . Total Part Build Rating . | . . Parts Repaired . | . . Time . | . . Parts Recycled . | . . Recycled Matter . | . . Retrieved Matter . | . . Retrieved Components . | . . Parts Scanalyzed . | . . Part Schematics Acquired . | . . Parts Damaged . | . . Bothacking | -11 -10 ------------ Run | Scr Mat Used RIF Installer . | . . Robots Hacked . | . . Non-combat . | . . Combat . | . . Robot Hacks Applied . | . . Relay Couplers Released . | . . Robots Rewired . | . . Allies Hacked . | . . Hacks Repelled . | . . Allies | -11 -10 -------- Run | Scr Mat Total Allies . | . . Largest Group . | . . Highest-Rated Group . | . . Highest-Rated Ally . | . . Total Orders . | . . Ally Attacks . | . . Total Damage . | . . Kills . | . . Allies Corrupted . | . . Allies Melted . | . . Intel | -11 -10 ------- Run | Scr Mat Robot Analysis Total . | . . Derelict Logs Recovered . | . . Drone Launches . | . . Drone Recoveries . | . . Exploration | -11 -10 ------------- Run | Scr Mat Turns Passed 458 | 98 360 Spaces Moved 205 | 64 141 Core 24 | 16 8 Treads 181 | 48 133 Legs . | . . Wheels . | . . Hover . | . . Flight . | . . Fastest Speed 50 | 50 150 Average Speed 152 | 132 162 Slowest Speed 250 | 160 250 Overloaded Moves . | . . Propulsion Burnouts . | . . Robots Hopped . | . . Cave-ins Triggered . | . . Exploration Rate (%) 14 | 5 24 Regions Visited 1 Branch Regions . Pre-discovered Areas . | . . Known Exits Taken . | . . Unknown Exits Taken 1 | 1 . Scrap Searched . | . . Spaces Dug . | . . Terrain Destroyed . | . . Melee . | . . Projectile . | . . AOE . | . . Actions | -11 -10 --------- Run | Scr Mat Total 278 | 77 201 Wait . | . . Move 204 | 63 141 Hop . | . . Pick Up 11 | 8 3 Fast Attach . | . . Attach 10 | 6 4 Detach . | . . Swap . | . . Drop . | . . Fire 52 | . 52 Melee . | . . Ram . | . . Kick . | . . Crush 1 | . 1 Escape Stasis . | . . Rewire . | . . Trap . | . . Miscellaneous . | . . Route ------- -11/Scrapyard -10/Materials (discovered 2 exits: [*Mat] / [*Min]) History --------- Turn | Location | Event 2 | -11/Scrapyard | Discovered new exit (range 16) 99 | -11/Scrapyard | Entered Materials 308 | -10/Materials | Build established: Mutant 315 | -10/Materials | Discovered new exit (range 15) 392 | -10/Materials | Lost 3 parts (1p1n1w) 420 | -10/Materials | Discovered new exit (range 10) 423 | -10/Materials | Core integrity fell below 50% 434 | -10/Materials | Core integrity fell below 20% 459 | -10/Materials | Destroyed by G-34 Mercenary with Small Laser Last Messages --------------- 00430_ U-05 Engineer lays Concrete. 00437_ K-01 Serf collects debris. 00440_ G-34 Mercenary destroyed. 00440_ U-05 Engineer lays Concrete. 00441_ K-01 Serf collects debris. 00441_ U-05 Engineer lays Concrete. 00442_ R-06 Scavenger collects Lgt. Assault Rifle. 00442_ U-05 Engineer lays Concrete. 00442_ Acquired 21 matter. 00442_ Lgt. Nuclear Core destroyed. 00444_ K-01 Serf collects debris. 00445_ G-34 Mercenary destroyed. 00445_ Switching to secondary target: G-34 Mercenary. 00446_ Acquired 1 matter. 00449_ K-01 Serf collects debris. 00449_ R-06 Scavenger collects Heat Sink. 00451_ Sml. Laser destroyed. 00452_ K-01 Serf collects debris. 00453_ R-06 Scavenger collects Aluminum Leg. 00456_ K-01 Serf collects debris. Map ----- +----------------------------------------------------+ | ?????????????????? #???????????????? | | ????????????????? ###############?? | | ????????????????? #?? | | ????????????????? #?? | | ???????????????????""" """ #?? | | ???????????????????""" """" #?? | | ????????????? """" """" ############# #?? | | ????????????? # #?# #?? | | ????????????? # !=#?# #?? | | ????????????????? """" """" / #?# #?? | | ???????????????????""" """" # #?# #?? | | ?????????????? """" """" ##+####+###?# #?? | | ????????????? * #### ###?? #?? | | ????????????? ## #?? #?? | | ????????????????############### ## #?? #?? | | ??????????????????????????????# ## #?? #?? | | ??????????????????????######### k ## #?? #?? | | ??????????????????????# o u ## #?? #?? | | ??????????????????????# ##?? ??? | | ??????????????????"" + #???????? | | ??????????????????"" # #???????? | | ??????????????????????# """" #???????? | | ??????????????????????## =% """" #???????? | | ???????????????????????# r """" ?????? | | ??????????????????# # % ####????? | | ??????????????????# + @ #???????? | | ??????????????????# # ########### #???????? | | ??????????????????####?#=g%#?????????# #???????? | | ???????????????????????# [*#????????? #??????? | | ???????????????????????# #????????? #?????? | | ???????????????????????# #????????? #?????? | | ???????????????????????# #????????? < #?????? | | ???????????????????????+ +????????? ??????? | | ???????????????????????# #?????????? ""??????? | | ???????????????????????# < #??????????|||????????? | | ???????????????????????# #?????????????????????? | | ???????????????????????#####?????????????????????? | | ?????????????????????????????????????????????????? | | ?????????????????????????????????????????????????? | | ?????????????????????????????????????????????????? | | ?????????????????????????????????????????????????? | | ?????????????????????????????????????????????????? | | ?????????????????????????????????????????????????? | | ?????????????????????????????????????????????????? | | | | | | | | | | | | | +----------------------------------------------------+ Best States ------------- Heat Dissipation 25 Energy Generation 14 Energy Capacity 160 Matter Stores 400 Matter Capacity 400 Sight Range 16 Terrain Scan Density 10 Evasion (%) 50 Recoil Reduction 2 Item Schematics ----------------- None Robot Schematics ------------------ None Fabricated ------------ Nothing Alien Tech Used ----------------- None Achievements -------------- None Challenges ------------ None Game ------ Seed ProtonCorruptionTreads Manual? 0 Play Time 00:13:27 Cumulative 13.8 hours Start 2019.11.18 @ 08:25:46 End 2019.11.22 @ 11:24:36 Sessions 4 Manual Loads 0 Difficulty Rogue Special Mode None Game No. 59 Rogue 56 Adventurer 0 Explorer 3 Win Type - Total 0 Types 0/0/0/0/0/0/0 Lore% 19 Gallery% 15 Achievement% 16 Wizard Run 0 Options --------- ASCII 0 Keyboard 0 Movement Mouse Keybinds 0 Fullscreen 1 Font 18/SmallcapsGlow Map View 76x50 Tactical HUD 1 Map Filters NONE Filters NONE Steam 1 RUN: 09e6a01d-3bef-445b-aedb-c150655a557e